bitfinex/quotes_SOLUSD_20250929
["timestamp","ask_amount","ask_price","bid_price","bid_amount"]
[1759104639196,0.71,210.87,210.83,16.60105297]
[1759104640712,0.71,210.86,210.83,16.60105297]
[1759104641091,0.2,210.88,210.83,16.60105297]
[1759104641407,0.2,210.88,210.84,37.81]
[1759104641614,0.91,210.88,210.84,37.12]
[1759104643013,0.2,210.88,210.85,16.59947829]
[1759104643312,0.71,210.87,210.85,16.59947829]
[1759104643501,0.71,210.86,210.85,16.59947829]
[1759104644104,0.91,210.88,210.85,16.59947829]
[1759104645110,0.91,210.88,210.85,12.54677021]
[1759104645111,0.2,210.88,210.85,12.54677021]
[1759104645516,0.2,210.88,210.85,49.66677021]
[1759104645703,0.2,210.88,210.85,48.97677021]
[1759104646520,0.71,210.87,210.85,11.85677021]
[1759104646722,0.71,210.86,210.85,11.85677021]
[1759104647225,0.2,210.88,210.85,11.85677021]
[1759104647410,0.91,210.88,210.85,11.85677021]
[1759104647720,0.71,210.87,210.85,11.85677021]
[1759104649422,0.2,210.88,210.85,11.85677021]
[1759104649614,0.71,210.87,210.85,11.85677021]
[1759104650915,0.7,210.86,210.85,11.85677021]
[1759104651121,0.7,210.86,210.83,4.74315799]
[1759104651418,0.7,210.85,210.83,4.74315799]
[1759104651716,0.7,210.84,210.83,4.74315799]
[1759104652494,0.7,210.86,210.83,4.74315799]
[1759104652700,0.7,210.85,210.82,11.85804225]
[1759104653322,13.79559401,210.88,210.82,11.85804225]
[1759104653630,0.2,210.88,210.83,0.67]
[1759104653928,0.9,210.88,210.83,0.67]
[1759104654433,0.7,210.87,210.81,4.74360798]
[1759104654730,0.7,210.86,210.79,16.60379734]
[1759104654929,0.7,210.85,210.79,16.60379734]
[1759104655507,0.7,210.84,210.79,16.60379734]
[1759104656208,0.7,210.83,210.79,16.60379734]
[1759104657018,0.7,210.83,210.79,17.27379734]
[1759104659314,0.7,210.85,210.79,17.27379734]
[1759104660011,0.2,210.88,210.82,26.0]
[1759104660210,0.2,210.88,210.83,0.67]
[1759104660417,0.9,210.88,210.83,0.67]
[1759104660624,0.2,210.88,210.84,0.67]
[1759104661428,0.9,210.88,210.84,0.67]
[1759104661627,0.9,210.88,210.79,40.99408767]
[1759104661628,0.7,210.87,210.79,40.99408767]
[1759104661837,0.7,210.86,210.79,40.32408767]
[1759104662016,0.7,210.86,210.79,16.60379734]
[1759104662214,0.7,210.85,210.79,16.60379734]
[1759104662433,1.53763043,210.87,210.79,16.60379734]
[1759104662615,0.7,210.84,210.79,16.60379734]
[1759104663014,0.7,210.84,210.79,17.27379734]
[1759104663229,1.53780066,210.86,210.8,0.67]
[1759104663534,14.29559401,210.86,210.8,0.67]
[1759104663908,14.29559401,210.86,210.79,16.60379734]
[1759104663909,14.29559401,210.86,210.81,4.74360798]
[1759104664110,2.23979179,210.85,210.81,16.60262795]
[1759104664311,0.7,210.84,210.81,16.60262795]
[1759104664833,0.7,210.84,210.81,4.74360798]
[1759104665928,0.7,210.84,210.8,11.85936798]
[1759104666111,0.7,210.84,210.8,12.52936798]
[1759104666518,13.59559401,210.82,210.73,0.67]
[1759104666716,2.24235499,210.81,210.73,0.67]
[1759104666919,1.54235499,210.8,210.73,0.67]
[1759104667112,1.54235499,210.79,210.73,0.67]
[1759104667317,2.24235499,210.78,210.73,0.67]
[1759104667536,2.24235499,210.78,210.72,26.0]
[1759104667537,2.24320924,210.77,210.7,12.53490036]
[1759104667839,13.59559401,210.75,210.69,4.74630974]
[1759104668010,13.59559401,210.73,210.67,11.86675334]
[1759104668213,2.24312822,210.72,210.67,11.86675334]
[1759104668432,1.54312822,210.71,210.67,11.86675334]
[1759104668625,0.7,210.73,210.67,11.86675334]
[1759104668826,2.2429819,210.72,210.67,11.86675334]
[1759104669039,1.5429819,210.71,210.67,11.86675334]
[1759104669340,0.7,210.76,210.68,0.67]
[1759104669530,1.54285378,210.75,210.68,0.67]
[1759104669716,1.54285378,210.74,210.68,0.67]
[1759104669918,1.54285378,210.73,210.69,4.74630974]
[1759104670119,1.54286213,210.72,210.69,4.74630974]
[1759104670352,0.7,210.73,210.69,16.6120841]
[1759104670556,1.54207626,210.72,210.69,16.6120841]
[1759104670762,0.7,210.73,210.69,16.6120841]
[1759104670922,1.54206951,210.72,210.69,16.6120841]
[1759104671121,0.7,210.72,210.69,16.6120841]
[1759104672157,0.7,210.72,210.69,11.86577436]
[1759104672523,13.59559401,210.74,210.69,12.53577436]
[1759104672753,13.59559401,210.77,210.69,12.53577436]
[1759104672754,0.68,210.77,210.7,0.67]
[1759104673062,13.59559401,210.75,210.7,0.67]
[1759104673229,13.59559401,210.76,210.7,0.67]
[1759104674130,13.59559401,210.76,210.71,16.61050732]
[1759104674330,0.68,210.75,210.71,16.61050732]
[1759104675050,0.68,210.74,210.71,16.61050732]
[1759104675254,0.68,210.74,210.71,4.74585923]
[1759104675627,13.59559401,210.75,210.71,4.74585923]
[1759104675876,0.68,210.74,210.71,4.74585923]
[1759104676231,0.68,210.74,210.7,11.86493241]
[1759104676454,0.68,210.76,210.71,0.67]
[1759104676630,13.59559401,210.78,210.7,11.86493241]
[1759104676957,0.68,210.77,210.71,0.67]
[1759104677132,0.68,210.77,210.7,11.86493241]
[1759104677528,0.68,210.8,210.71,0.67]
[1759104677748,0.68,210.8,210.73,26.0]
[1759104678069,13.59559401,210.78,210.71,0.67]
[1759104678346,0.68,210.79,210.72,16.60971905]
[1759104678544,39.59559401,210.81,210.73,0.67]
[1759104678755,13.59559401,210.84,210.73,0.67]
[1759104679068,0.68,210.8,210.73,0.67]
[1759104679928,0.68,210.8,210.72,16.60971905]
[1759104680129,0.68,210.79,210.72,11.86408504]
[1759104680326,0.68,210.79,210.73,0.67]
[1759104680536,13.59559401,210.81,210.73,0.67]
[1759104680736,13.59559401,210.82,210.75,26.0]
[1759104680952,13.59559401,210.82,210.75,26.72]
[1759104681151,0.7,210.83,210.75,26.0]
[1759104681351,0.7,210.83,210.76,0.72]
[1759104681556,37.18,210.84,210.76,26.72]
[1759104681732,37.18,210.84,210.77,0.72]
[1759104682050,51.67559401,210.88,210.77,0.72]
[1759104682244,13.59559401,210.86,210.78,16.60499097]
[1759104682436,13.59559401,210.86,210.79,0.72]
[1759104682843,0.7,210.87,210.79,0.72]
[1759104683039,15.83408121,210.86,210.65,4.74714592]
[1759104683266,13.59559401,210.77,210.69,0.72]
[1759104683440,2.23796309,210.76,210.67,0.72]
[1759104683642,0.7,210.76,210.67,0.72]
[1759104683948,15.13354677,210.75,210.65,17.33517345]
[1759104684252,13.59559401,210.73,210.65,17.33517345]
[1759104684454,0.7,210.72,210.65,17.33517345]
[1759104685057,13.59559401,210.73,210.65,0.72]
[1759104685258,0.7,210.71,210.63,4.74749687]
[1759104685460,0.7,210.7,210.63,4.74749687]
[1759104685756,0.7,210.69,210.63,4.74749687]
[1759104687656,13.59559401,210.71,210.64,0.72]
[1759104687862,0.7,210.72,210.64,0.72]
[1759104688348,0.7,210.72,210.65,4.74721101]
[1759104691273,0.7,210.72,210.65,5.46721101]
[1759104692066,1.53601732,210.73,210.66,0.72]
[1759104692273,0.7,210.72,210.66,0.72]
[1759104692570,13.59559401,210.73,210.66,0.72]
[1759104693072,0.7,210.72,210.66,0.72]
[1759104693376,0.7,210.72,210.63,17.33681621]
[1759104693554,0.7,210.71,210.63,17.33681621]
[1759104693753,1.53562116,210.72,210.63,5.46766177]
[1759104693980,0.7,210.7,210.63,5.46766177]
[1759104694877,14.29559401,210.69,210.61,4.74793175]
[1759104695175,14.29559401,210.69,210.59,0.72]
[1759104695176,13.59559401,210.67,210.59,5.4683613]
[1759104695349,0.7,210.66,210.59,5.4683613]
[1759104695750,0.7,210.65,210.57,5.56883316]
[1759104696171,13.59559401,210.63,210.57,0.1]
[1759104696371,0.7,210.62,210.57,0.1]
[1759104696570,0.7,210.61,210.57,0.1]
[1759104697977,0.7,210.6,210.57,0.1]
[1759104698164,0.7,210.59,210.57,0.1]
[1759104699552,1.47356973,210.62,210.57,0.1]
[1759104699553,26.0,210.61,210.57,0.1]
[1759104699873,0.7,210.6,210.57,0.1]
[1759104700170,0.7,210.59,210.57,0.1]
[1759104700355,13.59559401,210.6,210.57,0.1]
[1759104700555,14.29559401,210.6,210.57,4.84900723]
[1759104701278,14.29559401,210.6,210.57,0.1]
[1759104701576,0.7,210.59,210.57,0.1]
[1759104701979,13.59559401,210.56,210.51,0.1]
[1759104702165,18.34493103,210.56,210.51,0.1]
[1759104702368,13.59559401,210.54,210.51,0.1]
[1759104702751,26.7,210.53,210.51,0.1]
[1759104702951,51.27559401,210.52,210.51,0.1]
[1759104703158,13.59559401,210.52,210.51,0.1]
[1759104703369,37.68,210.53,210.51,0.1]
[1759104703969,38.38,210.53,210.51,0.1]
[1759104704169,37.68,210.53,210.51,0.1]
[1759104704372,0.7,210.52,210.51,0.1]
[1759104704563,38.38,210.53,210.51,0.1]
[1759104705068,0.7,210.52,210.51,0.1]
[1759104706078,37.68,210.53,210.51,0.1]
[1759104706474,38.38,210.53,210.51,0.1]
[1759104707477,0.7,210.52,210.51,0.1]
[1759104707981,37.68,210.53,210.51,0.1]
[1759104708377,0.7,210.52,210.51,0.1]
[1759104709179,37.68,210.53,210.51,4.85025021]
[1759104710785,38.38,210.53,210.51,0.1]
[1759104713867,13.59559401,210.52,210.51,0.1]
[1759104714273,14.29559401,210.52,210.51,0.1]
[1759104714866,19.04573651,210.52,210.51,0.1]
[1759104715790,14.29559401,210.52,210.51,0.1]
[1759104716484,20.51522906,210.52,210.51,0.1]
[1759104717487,53.30508656,210.52,210.51,0.1]
[1759104717685,51.83559401,210.52,210.51,0.1]
[1759104718791,56.58573651,210.52,210.51,0.1]
[1759104719372,51.83559401,210.52,210.51,0.1]
[1759104719883,77.83559401,210.52,210.51,0.1]
[1759104720188,77.13559401,210.52,210.51,0.1]
[1759104720372,77.83559401,210.52,210.51,0.1]
[1759104720570,77.13559401,210.52,210.51,0.1]
[1759104720770,39.59559401,210.52,210.51,0.1]
[1759104720970,77.81559401,210.52,210.51,0.1]
[1759104721166,77.11559401,210.52,210.51,0.1]
[1759104721881,77.81559401,210.52,210.51,0.1]
[1759104726294,41.06746113,210.52,210.51,0.1]
[1759104726690,79.20746113,210.52,210.51,0.1]
[1759104727892,82.38387342,210.52,210.51,0.1]
[1759104728993,81.68387342,210.52,210.51,0.1]
[1759104729795,82.38387342,210.52,210.51,0.1]
[1759104730000,61.13401592,210.52,210.51,0.1]
[1759104732000,13.59559401,210.48,210.45,0.71]
[1759104732201,38.91186712,210.47,210.45,0.71]
[1759104732508,1.47186712,210.46,210.43,4.75194878]
[1759104732710,1.47186712,210.45,210.43,4.75194878]
[1759104732915,1.47186712,210.44,210.43,5.41194878]
[1759104733604,1.47186712,210.44,210.43,0.66]
[1759104733907,1.47186712,210.44,210.37,4.75352949]
[1759104734107,52.50746113,210.43,210.38,0.66]
[1759104734312,1.47186712,210.42,210.39,0.66]
[1759104734607,38.91186712,210.41,210.39,0.66]
[1759104734788,1.47186712,210.4,210.35,16.63893509]
[1759104734996,1.47429008,210.39,210.36,0.66]
[1759104735187,1.47429008,210.38,210.36,0.66]
[1759104735383,37.44,210.41,210.36,0.66]
[1759104735614,1.47439284,210.4,210.36,0.66]
[1759104735801,1.47439284,210.39,210.36,0.66]
[1759104735988,1.47439284,210.38,210.36,0.66]
[1759104736194,37.44,210.41,210.36,0.66]
[1759104736417,1.47392532,210.4,210.37,4.75352949]
[1759104736602,1.47392532,210.39,210.38,0.66]
[1759104736801,1.47392532,210.39,210.37,4.75352949]
[1759104736990,1.47392532,210.38,210.37,4.75352949]
[1759104737505,1.47392532,210.38,210.37,5.41352949]
[1759104741700,1.41258444,210.38,210.37,17.29735322]
[1759104742610,37.42,210.41,210.37,17.29735322]
[1759104742813,1.41283824,210.4,210.38,0.69]
[1759104743011,1.41283824,210.39,210.38,0.69]
[1759104743221,37.38,210.43,210.38,0.69]
[1759104743415,1.41290306,210.42,210.38,0.69]
[1759104743606,1.41290306,210.41,210.38,0.69]
[1759104743916,1.41290306,210.4,210.38,0.69]
[1759104744104,37.38,210.43,210.39,0.69]
[1759104744297,1.41317308,210.42,210.39,0.69]
[1759104744493,1.41317308,210.41,210.39,0.69]
[1759104744692,1.41317308,210.4,210.39,4.75307761]
[1759104746025,1.41317308,210.4,210.37,11.88382373]
[1759104746223,1.41317308,210.39,210.37,11.88382373]
[1759104746432,37.38,210.43,210.37,11.88382373]
[1759104746596,1.4140343,210.42,210.37,11.88382373]
[1759104746913,13.59559401,210.47,210.37,11.88382373]
[1759104746914,1.4140343,210.41,210.38,0.69]
[1759104747112,0.68,210.47,210.38,0.69]
[1759104747314,37.36,210.46,210.38,0.69]
[1759104748198,37.36,210.46,210.39,16.63577165]
[1759104748399,37.36,210.46,210.4,0.69]
[1759104748819,40.54977004,210.46,210.4,0.69]
[1759104749123,37.36,210.46,210.4,0.69]
[1759104749506,38.04,210.46,210.4,0.69]
[1759104750414,38.04,210.46,210.41,16.63419038]
[1759104750622,0.68,210.45,210.41,16.63419038]
[1759104751315,0.68,210.45,210.41,16.13419038]
[1759104753223,37.3,210.47,210.41,16.13419038]
[1759104753519,37.98,210.47,210.41,16.13419038]
[1759104753821,0.68,210.46,210.41,16.13419038]
[1759104755506,0.68,210.46,210.41,12.57156456]
[1759104755817,13.59559401,210.5,210.42,0.69]
[1759104756012,0.68,210.49,210.42,0.69]
[1759104756217,50.87559401,210.48,210.38,0.69]
[1759104756413,0.68,210.47,210.38,0.69]
[1759104756626,13.59559401,210.46,210.35,17.32893509]
[1759104756822,0.68,210.45,210.35,17.32893509]
[1759104757021,37.98,210.44,210.36,0.69]
[1759104757623,37.98,210.44,210.37,16.63735322]
[1759104757821,0.68,210.43,210.37,16.63735322]
[1759104758808,0.68,210.42,210.37,16.63735322]
[1759104759110,0.68,210.41,210.37,17.32735322]
[1759104759316,37.3,210.44,210.37,17.32735322]
[1759104759530,1.87044946,210.43,210.37,17.32735322]
[1759104759732,1.19044946,210.42,210.37,17.32735322]
[1759104759934,0.68,210.42,210.37,17.32735322]
[1759104760320,0.68,210.41,210.37,16.63735322]
[1759104760938,0.68,210.43,210.37,17.32735322]
[1759104761119,1.19044946,210.42,210.37,17.32735322]
[1759104761439,0.68,210.41,210.37,17.32735322]
[1759104761938,0.68,210.43,210.37,17.32735322]
[1759104762118,1.19044946,210.42,210.37,17.32735322]
[1759104762318,1.19044946,210.41,210.37,17.32735322]
[1759104762519,0.68,210.4,210.37,16.63735322]
[1759104762734,0.68,210.42,210.37,17.32735322]
[1759104763734,0.68,210.41,210.37,11.88382373]
[1759104764317,0.68,210.43,210.37,12.57382373]
[1759104764531,1.19048473,210.42,210.37,12.57382373]
[1759104764739,0.68,210.42,210.37,17.32735322]
[1759104765329,0.68,210.41,210.37,16.63735322]
[1759104765721,0.68,210.43,210.37,17.32735322]
[1759104766034,1.19048441,210.42,210.37,17.32735322]
[1759104766236,0.68,210.42,210.37,17.32735322]
[1759104766428,0.68,210.41,210.37,17.32735322]
[1759104766734,37.3,210.44,210.37,17.32735322]
[1759104767034,1.87048425,210.43,210.37,17.32735322]
[1759104767235,1.19048425,210.42,210.37,17.32735322]
[1759104767439,37.3,210.44,210.37,17.32735322]
[1759104767638,0.68,210.41,210.37,16.63735322]
[1759104768142,0.68,210.4,210.37,16.63735322]
[1759104768942,0.68,210.42,210.37,11.88382373]
[1759104769149,1.8704915,210.41,210.37,11.88382373]
[1759104769328,3.87991408,210.43,210.38,0.69]
[1759104769649,1.19049118,210.42,210.38,0.69]
[1759104769821,0.68,210.47,210.39,0.69]
[1759104770145,4.39073859,210.46,210.39,0.69]
[1759104770319,5.07073859,210.45,210.39,0.69]
[1759104770519,1.19036376,210.44,210.39,0.69]
[1759104770719,1.19036376,210.43,210.39,0.69]
[1759104771023,1.19036376,210.42,210.4,4.75285171]
[1759104771336,0.67,210.44,210.4,4.75285171]
[1759104771642,1.19044186,210.43,210.4,4.75285171]
[1759104771827,1.19044186,210.42,210.4,4.75285171]
[1759104772027,1.86044186,210.41,210.34,12.70514548]
[1759104772225,1.86044186,210.4,210.35,4.75398145]
[1759104772433,0.67,210.39,210.35,4.75398145]
[1759104772740,0.67,210.38,210.35,4.75398145]
[1759104772952,0.67,210.41,210.35,17.35893509]
[1759104773158,1.19052074,210.4,210.35,17.35893509]
[1759104773437,0.67,210.42,210.36,0.72]
[1759104773642,1.19050703,210.41,210.36,0.72]
[1759104773842,1.19050703,210.4,210.36,0.72]
[1759104774032,0.67,210.43,210.37,0.72]
[1759104774236,1.19045796,210.42,210.37,0.72]
[1759104774535,1.86045796,210.41,210.35,16.63893509]
[1759104774744,1.19045796,210.4,210.36,0.72]
[1759104774951,3.20467382,210.42,210.37,12.60382373]
[1759104775155,1.19048651,210.41,210.37,12.60382373]
[1759104775328,1.19048651,210.4,210.37,12.60382373]
[1759104775529,0.67,210.42,210.37,12.60382373]
[1759104775831,1.19048182,210.41,210.37,12.60382373]
[1759104776043,0.67,210.42,210.37,12.60382373]
[1759104776244,1.19046435,210.41,210.37,12.60382373]
[1759104776433,1.19046435,210.4,210.37,12.60382373]
[1759104776744,0.67,210.42,210.37,12.60382373]
[1759104777037,1.19048214,210.41,210.37,17.35735322]
[1759104777242,1.19048214,210.4,210.37,17.35735322]
[1759104777432,0.67,210.42,210.37,17.35735322]
[1759104777753,1.19048214,210.41,210.38,0.72]
[1759104777954,37.89,210.44,210.38,0.72]
[1759104778170,4.39643427,210.43,210.38,0.72]
[1759104778374,4.39643427,210.42,210.38,0.72]
[1759104778649,1.19045077,210.41,210.38,0.72]
[1759104778849,37.89,210.44,210.4,16.63498098]
[1759104779034,4.39666381,210.43,210.4,16.63498098]
[1759104779235,4.39666381,210.42,210.4,16.63498098]
[1759104779537,1.19045077,210.41,210.4,16.63498098]
[1759104780345,3.20641799,210.43,210.4,16.63498098]
[1759104780548,0.67,210.44,210.4,16.63498098]
[1759104780549,1.19036606,210.42,210.4,16.63498098]
[1759104780744,0.67,210.44,210.4,16.63498098]
[1759104780928,1.19036558,210.43,210.4,16.63498098]
[1759104781129,1.19036558,210.42,210.4,16.63498098]
[1759104781332,1.19043642,210.41,210.4,16.63498098]
[1759104782360,1.19043642,210.41,210.4,11.88212927]
[1759104782851,0.67,210.44,210.4,11.88212927]
[1759104783152,1.19036606,210.43,210.41,0.72]
[1759104783363,0.67,210.45,210.4,11.88212927]
[1759104783657,1.19025436,210.44,210.41,0.72]
[1759104783951,0.67,210.48,210.41,0.72]
[1759104784136,4.39721936,210.47,210.41,0.72]
[1759104784336,4.39721936,210.46,210.42,16.63339986]
[1759104784537,1.19024662,210.45,210.42,16.63339986]
[1759104784737,1.19024662,210.44,210.43,0.72]
[1759104785346,1.19024662,210.44,210.43,5.47217411]
[1759104786234,1.19024662,210.44,210.43,4.75217411]
[1759104786645,5.06676274,210.44,210.4,4.75285171]
[1759104786958,5.06676274,210.43,210.4,4.75285171]
[1759104787159,5.06676274,210.42,210.4,4.75285171]
[1759104787364,5.06676274,210.41,210.4,4.75285171]
[1759104787566,5.06676274,210.41,210.36,16.63765187]
[1759104787741,1.86024662,210.4,210.36,16.63765187]
[1759104787945,1.19024662,210.39,210.36,16.63765187]
[1759104788134,0.67,210.4,210.36,16.63765187]
[1759104788455,1.19051381,210.39,210.36,16.63765187]
[1759104788755,0.67,210.42,210.36,17.35765187]
[1759104788956,5.06668835,210.41,210.36,16.63765187]
[1759104789251,1.86051397,210.4,210.36,16.63765187]
[1759104789459,1.19051397,210.39,210.36,16.63765187]
[1759104789658,0.67,210.4,210.36,16.63765187]
[1759104789845,1.19051397,210.39,210.36,16.63765187]
[1759104790036,0.67,210.4,210.36,16.63765187]
[1759104790238,1.19051397,210.39,210.36,16.63765187]
[1759104790447,0.67,210.4,210.36,16.63765187]
[1759104790643,1.19051381,210.39,210.36,17.35765187]
[1759104790947,3.20506867,210.41,210.36,17.35765187]
[1759104791157,1.86051397,210.4,210.36,16.63765187]
[1759104791344,1.86051397,210.39,210.36,16.63765187]
[1759104791550,0.67,210.41,210.36,16.63765187]
[1759104791752,1.91051365,210.4,210.36,16.63765187]
[1759104791949,1.19051365,210.39,210.36,16.63765187]
[1759104792151,0.72,210.4,210.36,16.63765187]
[1759104792355,1.19052068,210.39,210.36,16.63765187]
[1759104792535,0.72,210.4,210.36,16.63765187]
[1759104792737,1.19052068,210.39,210.36,16.63765187]
[1759104792936,0.72,210.4,210.36,16.63765187]
[1759104793138,1.19052068,210.39,210.36,16.63765187]
[1759104793449,0.72,210.39,210.36,16.63765187]
[1759104793854,0.72,210.41,210.36,16.63765187]
[1759104794153,1.91055595,210.4,210.36,16.63765187]
[1759104794355,1.19055595,210.39,210.36,16.63765187]
[1759104794559,0.72,210.4,210.36,16.63765187]
[1759104794746,1.19055595,210.39,210.36,16.63765187]
[1759104794947,0.72,210.4,210.36,16.63765187]
[1759104795249,1.19055579,210.39,210.36,16.63765187]
[1759104795443,1.19055579,210.38,210.36,16.63765187]
[1759104795754,0.72,210.4,210.36,16.63765187]
[1759104796054,1.19059106,210.39,210.36,16.63765187]
[1759104796359,1.19059106,210.38,210.36,16.63765187]
[1759104796559,0.72,210.4,210.36,16.63765187]
[1759104796769,1.19061573,210.39,210.36,16.63765187]
[1759104796941,1.19061573,210.38,210.36,16.63765187]
[1759104797133,0.72,210.4,210.36,16.63765187]
[1759104797338,1.19058046,210.39,210.36,16.63765187]
[1759104797539,0.72,210.4,210.36,16.63765187]
[1759104797733,1.1905803,210.39,210.36,16.63765187]
[1759104797946,0.72,210.4,210.36,16.63765187]
[1759104798146,1.1905625,210.39,210.36,16.63765187]
[1759104798353,0.72,210.39,210.36,16.63765187]
[1759104798560,37.22,210.42,210.36,16.63765187]
[1759104798760,5.11325514,210.41,210.36,16.63765187]
[1759104798963,1.91056218,210.4,210.36,16.63765187]
[1759104799264,1.91056218,210.39,210.36,16.63765187]
[1759104799559,0.72,210.39,210.36,16.63765187]
[1759104799753,0.72,210.41,210.36,17.32765187]
[1759104799949,1.19056227,210.4,210.37,0.69]
[1759104800137,37.94,210.43,210.38,0.69]
[1759104800337,1.19050015,210.42,210.38,0.69]
[1759104800560,1.19050015,210.41,210.38,0.69]
[1759104800859,1.19050015,210.4,210.38,0.69]
[1759104801057,0.72,210.42,210.36,17.33765187]
[1759104801240,1.19048612,210.41,210.36,17.33765187]
[1759104801438,1.19048612,210.4,210.37,0.7]
[1759104801634,0.66,210.42,210.37,0.7]
[1759104801847,1.19048596,210.41,210.38,0.7]
[1759104802059,1.19048596,210.4,210.38,0.7]
[1759104802261,0.66,210.42,210.36,40.4064292]
[1759104802577,5.05165369,210.41,210.36,4.75375546]
[1759104802868,5.05165369,210.4,210.36,4.75375546]
[1759104803173,1.85047941,210.39,210.36,4.75375546]
[1759104803370,1.85047941,210.38,210.36,4.75375546]
[1759104803543,1.85047941,210.37,210.36,4.75375546]
[1759104804057,1.85047941,210.37,210.35,16.63886642]
[1759104804241,1.85047941,210.36,210.35,16.63886642]
[1759104804960,1.85073812,210.36,210.35,16.63886642]
[1759104805259,0.66,210.36,210.35,16.63886642]
[1759104805462,3.20191327,210.39,210.35,16.63886642]
[1759104805764,1.85070284,210.38,210.35,16.63886642]
[1759104805940,1.19070284,210.37,210.35,16.63886642]
[1759104806136,0.66,210.38,210.35,16.63886642]
[1759104806340,1.85070252,210.37,210.35,16.63886642]
[1759104806560,0.66,210.37,210.35,16.63886642]
[1759104808554,3.20053916,210.41,210.35,16.63886642]
[1759104808742,0.66,210.39,210.35,16.63886642]
[1759104808937,1.19068926,210.38,210.35,16.63886642]
[1759104809142,0.66,210.37,210.35,16.63886642]
[1759104809542,0.66,210.39,210.35,16.63886642]
[1759104809742,1.1906713,210.38,210.35,16.63886642]
[1759104809941,1.19070673,210.37,210.35,16.63886642]
[1759104810167,0.66,210.38,210.35,16.63886642]
[1759104810464,1.19070689,210.37,210.35,16.63886642]
[1759104810766,0.66,210.38,210.35,16.63886642]
[1759104810967,1.19070689,210.37,210.35,16.63886642]
[1759104811260,0.66,210.38,210.35,16.63886642]
[1759104811947,13.59559401,210.42,210.35,16.63886642]
[1759104812152,0.66,210.39,210.35,16.63886642]
[1759104812449,1.19067081,210.38,210.35,16.63886642]
[1759104812652,0.66,210.38,210.35,16.63886642]
[1759104813767,1.85067146,210.37,210.35,16.63886642]
[1759104813951,1.85075184,210.36,210.34,4.8541782]
[1759104814152,1.85075184,210.35,210.34,4.8541782]
[1759104814669,1.85082289,210.35,210.34,4.8541782]
[1759104814858,0.66,210.35,210.34,4.8541782]
[1759104815466,37.2,210.37,210.34,4.8541782]
[1759104815783,1.19078728,210.36,210.34,16.73969688]
[1759104815971,0.66,210.37,210.34,16.73969688]
[1759104816170,1.19078744,210.36,210.34,16.73969688]
[1759104816358,0.66,210.36,210.34,16.73969688]
[1759104816557,37.86,210.38,210.34,16.73969688]
[1759104816747,1.85078744,210.37,210.34,16.73969688]
[1759104816948,1.19078744,210.36,210.34,16.73969688]
[1759104817149,37.2,210.38,210.34,16.73969688]
[1759104817360,1.19078712,210.37,210.34,16.73969688]
[1759104817670,1.19078712,210.36,210.34,16.73969688]
[1759104817860,37.86,210.38,210.34,16.73969688]
[1759104818174,1.19078744,210.37,210.34,16.73969688]
[1759104818369,1.85078744,210.36,210.34,16.73969688]
[1759104818563,0.66,210.36,210.34,16.73969688]
[1759104818769,37.2,210.37,210.34,16.73969688]
[1759104818964,1.19078744,210.36,210.34,16.73969688]
[1759104819164,37.2,210.38,210.34,16.73969688]
[1759104819371,1.85078744,210.37,210.34,16.73969688]
[1759104819555,1.19078744,210.36,210.34,16.73969688]
[1759104819757,0.66,210.37,210.34,16.73969688]
[1759104819956,1.19078744,210.36,210.34,16.73969688]
[1759104820160,0.66,210.37,210.34,16.73969688]
[1759104820357,1.19078744,210.36,210.34,16.73969688]
[1759104820565,0.66,210.37,210.34,16.73969688]
[1759104820757,1.19078744,210.36,210.34,16.73969688]
[1759104820959,0.66,210.37,210.34,16.73969688]
[1759104821165,1.85078728,210.36,210.34,16.73969688]
[1759104821475,0.66,210.36,210.34,16.73969688]
[1759104821878,37.2,210.37,210.34,16.73969688]